[Event "Late-Titled-Tuesday-Blitz-September-05-2023"]
[Site "Chess.com"]
[Date "2023.09.05"]
[Round "3"]
[White "SilverCityIndigo"]
[Black "pooh2012"]
[Result "1-0"]
[WhiteElo "2313"]
[BlackElo "2510"]
[TimeControl "180+1"]
[EndTime "14:27:59 PDT"]
[Termination "SilverCityIndigo won by checkmate"]

1. d4 {[%clk 0:03:00.9]} 1... e6 {[%clk 0:02:59.7]} 2. c4 {[%clk 0:03:01.4]}
2... Ne7 {[%clk 0:02:59.3]} 3. Nc3 {[%clk 0:03:00.6]} 3... a6 {[%clk 0:02:55.2]}
4. g3 {[%clk 0:02:59.1]} 4... d5 {[%clk 0:02:54.7]} 5. cxd5 {[%clk 0:02:56.3]}
5... Nxd5 {[%clk 0:02:54.2]} 6. Bg2 {[%clk 0:02:54.7]} 6... Be7 {[%clk
0:02:51.7]} 7. Nf3 {[%clk 0:02:54.4]} 7... O-O {[%clk 0:02:51.2]} 8. O-O {[%clk
0:02:54.9]} 8... Nxc3 {[%clk 0:02:43.4]} 9. bxc3 {[%clk 0:02:54.5]} 9... c5
{[%clk 0:02:44]} 10. Qc2 {[%clk 0:02:52.6]} 10... Nc6 {[%clk 0:02:42.4]} 11. Rd1
{[%clk 0:02:48.6]} 11... Qa5 {[%clk 0:02:39.5]} 12. Ng5 {[%clk 0:02:42.8]} 12...
Bxg5 {[%clk 0:02:38.7]} 13. Bxg5 {[%clk 0:02:43.7]} 13... cxd4 {[%clk
0:02:37.8]} 14. Bxc6 {[%clk 0:02:37.1]} 14... Qxg5 {[%clk 0:02:08.4]} 15. Be4
{[%clk 0:02:36.9]} 15... dxc3 {[%clk 0:02:07.2]} 16. Bxh7+ {[%clk 0:02:36.5]}
16... Kh8 {[%clk 0:02:05.9]} 17. Be4 {[%clk 0:02:36.9]} 17... f5 {[%clk
0:01:57.4]} 18. Bf3 {[%clk 0:02:26.5]} 18... e5 {[%clk 0:01:56.1]} 19. Qxc3
{[%clk 0:02:24.9]} 19... e4 {[%clk 0:01:56.3]} 20. Bg2 {[%clk 0:02:24.8]} 20...
Be6 {[%clk 0:01:55.7]} 21. Rd6 {[%clk 0:02:17.6]} 21... Rac8 {[%clk 0:01:51.6]}
22. Qb2 {[%clk 0:02:11.8]} 22... Bc4 {[%clk 0:01:47.2]} 23. h4 {[%clk
0:02:10.4]} 23... Qh5 {[%clk 0:01:41.1]} 24. Rd7 {[%clk 0:01:49.8]} 24... Rg8
{[%clk 0:01:26.4]} 25. Rad1 {[%clk 0:01:00.6]} 25... b5 {[%clk 0:01:19.7]} 26.
R1d6 {[%clk 0:01:00.3]} 26... Kh7 {[%clk 0:01:08.8]} 27. Bh3 {[%clk 0:00:44.9]}
27... Bxe2 {[%clk 0:00:59.9]} 28. Qxe2 {[%clk 0:00:38.6]} 28... Rc1+ {[%clk
0:00:29.6]} 29. Kh2 {[%clk 0:00:38.4]} 29... Qxe2 {[%clk 0:00:17.8]} 30. Bxf5+
{[%clk 0:00:38.3]} 30... Kh8 {[%clk 0:00:14.1]} 31. Rh6+ {[%clk 0:00:34.8]}
31... gxh6 {[%clk 0:00:15]} 32. Rh7# {[%clk 0:00:35.1]} 1-0

[Event "Late-Titled-Tuesday-Blitz-September-05-2023"]
[Site "Chess.com"]
[Date "2023.09.05"]
[Round "3"]
[White "NowInChess"]
[Black "BigAl"]
[Result "0-1"]
[WhiteElo "2284"]
[BlackElo "2525"]
[TimeControl "180+1"]
[EndTime "14:28:00 PDT"]
[Termination "BigAl won on time"]

1. e4 {[%clk 0:03:00.9]} 1... c6 {[%clk 0:02:57.6]} 2. d4 {[%clk 0:03:00]} 2...
d5 {[%clk 0:02:57]} 3. exd5 {[%clk 0:03:00.5]} 3... cxd5 {[%clk 0:02:56.5]} 4.
c4 {[%clk 0:03:01.4]} 4... Nf6 {[%clk 0:02:56.7]} 5. Nc3 {[%clk 0:03:01.6]} 5...
g6 {[%clk 0:02:57.3]} 6. Qb3 {[%clk 0:03:01.6]} 6... Bg7 {[%clk 0:02:57.5]} 7.
cxd5 {[%clk 0:03:02.1]} 7... O-O {[%clk 0:02:58.3]} 8. Be2 {[%clk 0:03:01.2]}
8... Nbd7 {[%clk 0:02:58.5]} 9. Bf3 {[%clk 0:03:01.4]} 9... Nb6 {[%clk
0:02:59.4]} 10. Nge2 {[%clk 0:03:01]} 10... a5 {[%clk 0:03:00]} 11. a4 {[%clk
0:02:58.3]} 11... Qd6 {[%clk 0:02:59.4]} 12. Bf4 {[%clk 0:02:24.9]} 12... Qb4
{[%clk 0:02:57.4]} 13. Qa2 {[%clk 0:02:18.2]} 13... Bf5 {[%clk 0:02:53.3]} 14.
O-O {[%clk 0:02:10.7]} 14... Rac8 {[%clk 0:02:44.5]} 15. Be5 {[%clk 0:01:49.2]}
15... Bd3 {[%clk 0:02:40.8]} 16. Rfe1 {[%clk 0:01:32.1]} 16... Bc4 {[%clk
0:02:39]} 17. Qa3 {[%clk 0:01:29.4]} 17... Nbxd5 {[%clk 0:02:31.7]} 18. Qxb4
{[%clk 0:01:21.6]} 18... axb4 {[%clk 0:02:25.7]} 19. Nxd5 {[%clk 0:01:21.1]}
19... Nxd5 {[%clk 0:02:24.2]} 20. Bxg7 {[%clk 0:01:18.6]} 20... Kxg7 {[%clk
0:02:24.6]} 21. Bxd5 {[%clk 0:01:10.3]} 21... Bxd5 {[%clk 0:02:24.3]} 22. Nf4
{[%clk 0:01:09.9]} 22... e6 {[%clk 0:02:24.5]} 23. Nxd5 {[%clk 0:01:09.5]} 23...
exd5 {[%clk 0:02:24.9]} 24. Re7 {[%clk 0:01:07.9]} 24... Rc4 {[%clk 0:02:16]}
25. Rxb7 {[%clk 0:01:06.1]} 25... Rxd4 {[%clk 0:02:15.5]} 26. a5 {[%clk
0:01:05.6]} 26... Ra8 {[%clk 0:02:12.2]} 27. g3 {[%clk 0:01:03.7]} 27... Rc4
{[%clk 0:01:56.3]} 28. a6 {[%clk 0:01:02.2]} 28... d4 {[%clk 0:01:50.2]} 29. a7
{[%clk 0:00:56.8]} 29... d3 {[%clk 0:01:42.8]} 30. Rb8 {[%clk 0:00:56.2]} 30...
d2 {[%clk 0:01:37.4]} 31. Rxa8 {[%clk 0:00:19.6]} 31... Rc1+ {[%clk 0:01:37.4]}
32. Kg2 {[%clk 0:00:20.2]} 32... d1=Q {[%clk 0:01:37.2]} 33. Rxc1 {[%clk
0:00:12]} 33... Qd5+ {[%clk 0:01:36.4]} 34. f3 {[%clk 0:00:09.5]} 34... Qxa8
{[%clk 0:01:37.3]} 35. Rc7 {[%clk 0:00:08.6]} 35... Kf6 {[%clk 0:01:33.2]} 36.
Kf2 {[%clk 0:00:06.4]} 36... Ke6 {[%clk 0:01:33.7]} 37. Kg2 {[%clk 0:00:06]}
37... h5 {[%clk 0:01:33.8]} 38. h4 {[%clk 0:00:05.5]} 38... b3 {[%clk 0:01:32]}
39. Kf2 {[%clk 0:00:05.4]} 39... f6 {[%clk 0:01:32.3]} 40. Ke3 {[%clk
0:00:04.2]} 40... Qd5 {[%clk 0:01:25.6]} 41. Kf2 {[%clk 0:00:02.6]} 41... Qd2+
{[%clk 0:01:22.2]} 42. Kf1 {[%clk 0:00:02.7]} 42... Qa5 {[%clk 0:01:16.1]} 43.
Rb7 {[%clk 0:00:01.9]} 43... Qa6+ {[%clk 0:01:16.2]} 0-1

[Event "Late-Titled-Tuesday-Blitz-September-05-2023"]
[Site "Chess.com"]
[Date "2023.09.05"]
[Round "3"]
[White "cassoulet"]
[Black "FabianoCaruana"]
[Result "0-1"]
[WhiteElo "2760"]
[BlackElo "3068"]
[TimeControl "180+1"]
[EndTime "14:28:01 PDT"]
[Termination "FabianoCaruana won by resignation"]

1. d4 {[%clk 0:03:00.9]} 1... Nf6 {[%clk 0:02:59.1]} 2. Bg5 {[%clk 0:03:00.6]}
2... Nc6 {[%clk 0:02:58.4]} 3. Nc3 {[%clk 0:02:57.3]} 3... d5 {[%clk 0:02:57.9]}
4. e3 {[%clk 0:02:52.8]} 4... Bf5 {[%clk 0:02:57.8]} 5. Bd3 {[%clk 0:02:50.7]}
5... Bg6 {[%clk 0:02:57.3]} 6. Nge2 {[%clk 0:02:50.2]} 6... e6 {[%clk
0:02:57.2]} 7. Nf4 {[%clk 0:02:43.9]} 7... Be7 {[%clk 0:02:57.3]} 8. Nxg6 {[%clk
0:02:43.2]} 8... hxg6 {[%clk 0:02:58.2]} 9. Qf3 {[%clk 0:02:41.3]} 9... Nb4
{[%clk 0:02:56]} 10. O-O-O {[%clk 0:02:40.4]} 10... Nxd3+ {[%clk 0:02:54.6]} 11.
Rxd3 {[%clk 0:02:41.3]} 11... c6 {[%clk 0:02:52.2]} 12. Kb1 {[%clk 0:02:39.3]}
12... a5 {[%clk 0:02:51.1]} 13. h3 {[%clk 0:02:39.1]} 13... a4 {[%clk
0:02:50.9]} 14. Bxf6 {[%clk 0:02:38.2]} 14... gxf6 {[%clk 0:02:48.4]} 15. e4
{[%clk 0:02:37.4]} 15... Kf8 {[%clk 0:02:48]} 16. e5 {[%clk 0:02:29.7]} 16...
fxe5 {[%clk 0:02:38]} 17. dxe5 {[%clk 0:02:30.6]} 17... b5 {[%clk 0:02:36.9]}
18. Ne2 {[%clk 0:02:29.3]} 18... Kg7 {[%clk 0:02:35.9]} 19. Qg4 {[%clk
0:02:23.6]} 19... Rh5 {[%clk 0:02:33.7]} 20. f4 {[%clk 0:02:21.4]} 20... c5
{[%clk 0:02:28.9]} 21. Ng3 {[%clk 0:02:00]} 21... Rh4 {[%clk 0:02:28.3]} 22. Qf3
{[%clk 0:01:59.8]} 22... d4 {[%clk 0:02:26.3]} 23. Ne4 {[%clk 0:01:55.9]} 23...
Qd5 {[%clk 0:02:20.5]} 24. g3 {[%clk 0:01:49.4]} 24... Rhh8 {[%clk 0:02:17.7]}
25. g4 {[%clk 0:01:49.6]} 25... c4 {[%clk 0:02:14.1]} 26. Rdd1 {[%clk
0:01:48.2]} 26... a3 {[%clk 0:02:02.3]} 27. b3 {[%clk 0:01:45.6]} 27... cxb3
{[%clk 0:02:02.1]} 28. cxb3 {[%clk 0:01:45]} 28... Rac8 {[%clk 0:01:57.4]} 29.
Rhe1 {[%clk 0:01:33.8]} 29... Bb4 {[%clk 0:01:48.7]} 30. Re2 {[%clk 0:01:23.7]}
30... Rc3 {[%clk 0:01:47.3]} 31. Rd3 {[%clk 0:01:00.5]} 31... Rc6 {[%clk
0:01:26.1]} 32. f5 {[%clk 0:00:56.5]} 32... Rhc8 {[%clk 0:01:20.7]} 33. Rd1
{[%clk 0:00:48.2]} 33... exf5 {[%clk 0:01:12.1]} 34. gxf5 {[%clk 0:00:47.4]}
34... d3 {[%clk 0:01:10.7]} 35. Rg2 {[%clk 0:00:32.4]} 35... d2 {[%clk
0:01:00.3]} 36. Rgg1 {[%clk 0:00:18.5]} 36... Qxe5 {[%clk 0:00:56.7]} 37. f6+
{[%clk 0:00:06.5]} 37... Kf8 {[%clk 0:00:56]} 0-1

[Event "Late-Titled-Tuesday-Blitz-September-05-2023"]
[Site "Chess.com"]
[Date "2023.09.05"]
[Round "3"]
[White "zozik"]
[Black "reevecanada"]
[Result "1-0"]
[WhiteElo "2384"]
[BlackElo "2535"]
[TimeControl "180+1"]
[EndTime "14:28:04 PDT"]
[Termination "zozik won by checkmate"]

1. d4 {[%clk 0:02:56.2]} 1... Nf6 {[%clk 0:02:58.3]} 2. Nf3 {[%clk 0:02:55.1]}
2... d5 {[%clk 0:02:58]} 3. c4 {[%clk 0:02:55.5]} 3... c6 {[%clk 0:02:58.1]} 4.
g3 {[%clk 0:02:55.9]} 4... dxc4 {[%clk 0:02:57.9]} 5. Bg2 {[%clk 0:02:55.8]}
5... b5 {[%clk 0:02:58.1]} 6. Ne5 {[%clk 0:02:54.7]} 6... Bb7 {[%clk 0:02:58.2]}
7. a4 {[%clk 0:02:52.9]} 7... a6 {[%clk 0:02:58]} 8. b3 {[%clk 0:02:44.4]} 8...
cxb3 {[%clk 0:02:53.9]} 9. O-O {[%clk 0:02:44]} 9... e6 {[%clk 0:02:53.2]} 10.
Bb2 {[%clk 0:02:43.4]} 10... Nfd7 {[%clk 0:02:53.4]} 11. Nd3 {[%clk 0:02:39.7]}
11... Nb6 {[%clk 0:02:52.3]} 12. axb5 {[%clk 0:02:31.6]} 12... axb5 {[%clk
0:02:50.3]} 13. Rxa8 {[%clk 0:02:32.5]} 13... Bxa8 {[%clk 0:02:50.4]} 14. Qxb3
{[%clk 0:02:32.6]} 14... Nc4 {[%clk 0:02:49.8]} 15. Bc1 {[%clk 0:02:30.1]} 15...
Nd7 {[%clk 0:02:49.6]} 16. Nc3 {[%clk 0:02:29.2]} 16... Ndb6 {[%clk 0:02:49.5]}
17. e3 {[%clk 0:02:27.5]} 17... Bd6 {[%clk 0:02:48.5]} 18. Ne4 {[%clk
0:02:26.5]} 18... O-O {[%clk 0:02:48.2]} 19. Ndc5 {[%clk 0:02:14.7]} 19... Qe7
{[%clk 0:02:44.5]} 20. Rd1 {[%clk 0:01:58]} 20... e5 {[%clk 0:02:42.4]} 21. Nxd6
{[%clk 0:01:50.4]} 21... Qxd6 {[%clk 0:02:43.3]} 22. Ne4 {[%clk 0:01:48.5]}
22... Qe7 {[%clk 0:02:41.7]} 23. dxe5 {[%clk 0:01:10.7]} 23... Qxe5 {[%clk
0:02:37.5]} 24. Nc3 {[%clk 0:01:09]} 24... Qe7 {[%clk 0:02:33.4]} 25. e4 {[%clk
0:00:58.5]} 25... Rd8 {[%clk 0:02:31.6]} 26. Bf4 {[%clk 0:00:54.2]} 26... h6
{[%clk 0:02:29.8]} 27. h4 {[%clk 0:00:52.1]} 27... Rd7 {[%clk 0:02:28.8]} 28.
Rxd7 {[%clk 0:00:49.4]} 28... Qxd7 {[%clk 0:02:27.9]} 29. e5 {[%clk 0:00:47.4]}
29... Bb7 {[%clk 0:02:27.8]} 30. Ne4 {[%clk 0:00:45.2]} 30... Na4 {[%clk
0:02:26.9]} 31. Nd6 {[%clk 0:00:43.3]} 31... Nxd6 {[%clk 0:02:25.3]} 32. exd6
{[%clk 0:00:44.2]} 32... c5 {[%clk 0:02:25.4]} 33. Bxb7 {[%clk 0:00:42]} 33...
Qxb7 {[%clk 0:02:26.3]} 34. Qd1 {[%clk 0:00:39.5]} 34... Qd7 {[%clk 0:02:25.1]}
35. Qd5 {[%clk 0:00:38.9]} 35... c4 {[%clk 0:02:25.6]} 36. Qa8+ {[%clk
0:00:38.2]} 36... Kh7 {[%clk 0:02:22.7]} 37. Qe4+ {[%clk 0:00:38.6]} 37... f5
{[%clk 0:02:23.1]} 38. Qe7 {[%clk 0:00:37.5]} 38... Nc5 {[%clk 0:02:23.7]} 39.
Be5 {[%clk 0:00:31.7]} 39... b4 {[%clk 0:02:19.9]} 40. Bxg7 {[%clk 0:00:30.4]}
40... Qe6 {[%clk 0:01:54.8]} 41. Bd4+ {[%clk 0:00:28.3]} 41... Kg6 {[%clk
0:01:45.4]} 42. Bxc5 {[%clk 0:00:26.1]} 42... Qd5 {[%clk 0:01:40.3]} 43. d7
{[%clk 0:00:22.9]} 43... Qd1+ {[%clk 0:01:40.6]} 44. Kh2 {[%clk 0:00:21.9]}
44... f4 {[%clk 0:01:32.1]} 45. Qe8+ {[%clk 0:00:17.6]} 45... Kh7 {[%clk
0:01:24.8]} 46. Qf7+ {[%clk 0:00:16.5]} 46... Kh8 {[%clk 0:01:25.4]} 47. Qf6+
{[%clk 0:00:12.6]} 47... Kh7 {[%clk 0:01:22]} 48. d8=Q {[%clk 0:00:13.1]} 48...
fxg3+ {[%clk 0:01:22.1]} 49. fxg3 {[%clk 0:00:11.7]} 49... Qe2+ {[%clk
0:01:22.2]} 50. Kh3 {[%clk 0:00:11.5]} 50... Qe5 {[%clk 0:01:22]} 51. Qdh8#
{[%clk 0:00:09.7]} 1-0

[Event "Late-Titled-Tuesday-Blitz-September-05-2023"]
[Site "Chess.com"]
[Date "2023.09.05"]
[Round "3"]
[White "IngOscarArdila"]
[Black "olakenn"]
[Result "1-0"]
[WhiteElo "2401"]
[BlackElo "1846"]
[TimeControl "180+1"]
[EndTime "14:28:05 PDT"]
[Termination "IngOscarArdila won by resignation"]

1. d4 {[%clk 0:02:59.2]} 1... Nf6 {[%clk 0:02:49.5]} 2. c4 {[%clk 0:02:59.4]}
2... g6 {[%clk 0:02:49.1]} 3. Nc3 {[%clk 0:02:59.7]} 3... d5 {[%clk 0:02:47.3]}
4. Nf3 {[%clk 0:02:59.3]} 4... Bg7 {[%clk 0:02:45.5]} 5. e3 {[%clk 0:02:59.5]}
5... c6 {[%clk 0:02:45.4]} 6. Be2 {[%clk 0:02:59.3]} 6... dxc4 {[%clk
0:02:44.3]} 7. Bxc4 {[%clk 0:02:59]} 7... O-O {[%clk 0:02:44.4]} 8. O-O {[%clk
0:02:59.2]} 8... Nbd7 {[%clk 0:02:43.4]} 9. h3 {[%clk 0:02:59.1]} 9... b5 {[%clk
0:02:41.5]} 10. Bb3 {[%clk 0:02:53.4]} 10... Nb6 {[%clk 0:02:41.1]} 11. Qe2
{[%clk 0:02:52.3]} 11... a5 {[%clk 0:02:40.3]} 12. a4 {[%clk 0:02:51.8]} 12...
b4 {[%clk 0:02:38.4]} 13. Nb1 {[%clk 0:02:45.7]} 13... Ba6 {[%clk 0:02:36.8]}
14. Qd1 {[%clk 0:02:46]} 14... Bxf1 {[%clk 0:02:35.8]} 15. Qxf1 {[%clk
0:02:46.9]} 15... Nbd5 {[%clk 0:02:32.5]} 16. Ne5 {[%clk 0:02:45.6]} 16... Qb6
{[%clk 0:02:27.8]} 17. Qc4 {[%clk 0:02:35.1]} 17... Qa6 {[%clk 0:02:22.8]} 18.
Qc2 {[%clk 0:02:25.9]} 18... Rac8 {[%clk 0:02:10.8]} 19. e4 {[%clk 0:02:25.7]}
19... Nb6 {[%clk 0:02:01.8]} 20. Be3 {[%clk 0:02:19.5]} 20... Nbd7 {[%clk
0:01:54.8]} 21. Bc4 {[%clk 0:01:57]} 21... Qb7 {[%clk 0:01:46]} 22. Qb3 {[%clk
0:01:45.2]} 22... Nxe5 {[%clk 0:01:42.9]} 23. dxe5 {[%clk 0:01:45.4]} 23... Nd7
{[%clk 0:01:41.3]} 24. e6 {[%clk 0:01:43.5]} 24... Kh8 {[%clk 0:01:29.1]} 25.
exd7 {[%clk 0:01:42.6]} 25... Qxd7 {[%clk 0:01:27.7]} 26. Nd2 {[%clk 0:01:36.8]}
26... Rcd8 {[%clk 0:01:20.6]} 27. Bxf7 {[%clk 0:01:26.8]} 27... e5 {[%clk
0:01:01.7]} 28. Bc4 {[%clk 0:01:21]} 28... h6 {[%clk 0:00:53.7]} 29. Be2 {[%clk
0:01:15.3]} 29... Rf6 {[%clk 0:00:48.7]} 30. Nc4 {[%clk 0:01:14.4]} 30... Qe7
{[%clk 0:00:41.8]} 31. Rd1 {[%clk 0:01:10.5]} 31... Rxd1+ {[%clk 0:00:37.2]} 32.
Qxd1 {[%clk 0:01:10.2]} 32... Kh7 {[%clk 0:00:27.9]} 33. Nxa5 {[%clk 0:01:09.1]}
33... Rd6 {[%clk 0:00:19.9]} 34. Qc2 {[%clk 0:01:08.5]} 34... Qd8 {[%clk
0:00:19.1]} 35. Nc4 {[%clk 0:01:07.3]} 35... Rd7 {[%clk 0:00:17]} 36. a5 {[%clk
0:01:03.8]} 36... h5 {[%clk 0:00:16.3]} 37. a6 {[%clk 0:01:03.1]} 37... Bh6
{[%clk 0:00:14.3]} 38. Bb6 {[%clk 0:00:58.1]} 1-0

[Event "Late-Titled-Tuesday-Blitz-September-05-2023"]
[Site "Chess.com"]
[Date "2023.09.05"]
[Round "3"]
[White "AndreiITrifan"]
[Black "Casper"]
[Result "1-0"]
[WhiteElo "2625"]
[BlackElo "2450"]
[TimeControl "180+1"]
[EndTime "14:28:07 PDT"]
[Termination "AndreiITrifan won by resignation"]

1. e4 {[%clk 0:02:59.9]} 1... c5 {[%clk 0:03:00.3]} 2. Nf3 {[%clk 0:02:59.4]}
2... d6 {[%clk 0:03:00.9]} 3. Bc4 {[%clk 0:02:58.4]} 3... g6 {[%clk 0:02:59.5]}
4. c3 {[%clk 0:02:55.4]} 4... Bg7 {[%clk 0:02:59.6]} 5. O-O {[%clk 0:02:54.3]}
5... a6 {[%clk 0:02:57.8]} 6. a4 {[%clk 0:02:54]} 6... Nf6 {[%clk 0:02:54.5]} 7.
Re1 {[%clk 0:02:53.1]} 7... O-O {[%clk 0:02:53.1]} 8. h3 {[%clk 0:02:52.9]} 8...
e5 {[%clk 0:02:50.8]} 9. d3 {[%clk 0:02:51.9]} 9... Be6 {[%clk 0:02:49.4]} 10.
Nbd2 {[%clk 0:02:51.3]} 10... Nbd7 {[%clk 0:02:43.1]} 11. Qb3 {[%clk 0:02:32.9]}
11... Bxc4 {[%clk 0:02:34.9]} 12. Nxc4 {[%clk 0:02:33.8]} 12... Qc7 {[%clk
0:02:33.5]} 13. a5 {[%clk 0:02:31.5]} 13... h6 {[%clk 0:02:22.5]} 14. Bd2 {[%clk
0:02:17.6]} 14... Kh7 {[%clk 0:02:22.2]} 15. Rad1 {[%clk 0:02:11.5]} 15... Rae8
{[%clk 0:01:55.4]} 16. Nh2 {[%clk 0:02:06]} 16... d5 {[%clk 0:01:52.4]} 17. exd5
{[%clk 0:01:58.2]} 17... Nxd5 {[%clk 0:01:53.3]} 18. Nf3 {[%clk 0:01:35.3]}
18... f5 {[%clk 0:01:28.8]} 19. Bc1 {[%clk 0:01:12]} 19... e4 {[%clk 0:01:18]}
20. dxe4 {[%clk 0:01:06.6]} 20... fxe4 {[%clk 0:01:18.9]} 21. Rxd5 {[%clk
0:01:01.7]} 21... exf3 {[%clk 0:01:18.8]} 22. Red1 {[%clk 0:00:49.5]} 22... Nf6
{[%clk 0:01:06.8]} 23. Rd6 {[%clk 0:00:46.6]} 23... Ne4 {[%clk 0:01:00.9]} 24.
Rd7 {[%clk 0:00:44]} 24... Qc6 {[%clk 0:00:48.4]} 25. Qxb7 {[%clk 0:00:42.1]}
25... Qf6 {[%clk 0:00:36.8]} 26. Rxg7+ {[%clk 0:00:35.1]} 26... Qxg7 {[%clk
0:00:36.3]} 27. Rd7 {[%clk 0:00:35.4]} 27... Rg8 {[%clk 0:00:31.7]} 28. Be3
{[%clk 0:00:29.9]} 28... fxg2 {[%clk 0:00:26]} 29. Kxg2 {[%clk 0:00:24.4]} 29...
Nf6 {[%clk 0:00:26]} 30. Rxg7+ {[%clk 0:00:22.3]} 30... Rxg7 {[%clk 0:00:26.9]}
31. Qxa6 {[%clk 0:00:22.6]} 1-0

[Event "Late-Titled-Tuesday-Blitz-September-05-2023"]
[Site "Chess.com"]
[Date "2023.09.05"]
[Round "3"]
[White "CFalcons8"]
[Black "cthake"]
[Result "1-0"]
[WhiteElo "2312"]
[BlackElo "1872"]
[TimeControl "180+1"]
[EndTime "14:28:07 PDT"]
[Termination "CFalcons8 won on time"]

1. e4 {[%clk 0:03:00.9]} 1... c5 {[%clk 0:02:59]} 2. Nf3 {[%clk 0:02:59.7]} 2...
Nc6 {[%clk 0:02:58.9]} 3. d4 {[%clk 0:02:56.4]} 3... cxd4 {[%clk 0:02:59.2]} 4.
Nxd4 {[%clk 0:02:57.3]} 4... Nf6 {[%clk 0:02:59.3]} 5. Nc3 {[%clk 0:02:56.8]}
5... e5 {[%clk 0:02:58.6]} 6. Ndb5 {[%clk 0:02:53.7]} 6... d6 {[%clk 0:02:58.7]}
7. Bg5 {[%clk 0:02:52.6]} 7... a6 {[%clk 0:02:59]} 8. Na3 {[%clk 0:02:51.7]}
8... b5 {[%clk 0:02:59.5]} 9. Nd5 {[%clk 0:02:50.9]} 9... Be7 {[%clk 0:02:59.8]}
10. Bxf6 {[%clk 0:02:45.9]} 10... Bxf6 {[%clk 0:02:58]} 11. c4 {[%clk
0:02:45.8]} 11... b4 {[%clk 0:02:55.4]} 12. Nc2 {[%clk 0:02:45.8]} 12... a5
{[%clk 0:02:55.7]} 13. g3 {[%clk 0:02:38.9]} 13... Bg5 {[%clk 0:02:54.4]} 14.
Bg2 {[%clk 0:02:37.3]} 14... O-O {[%clk 0:02:53.7]} 15. O-O {[%clk 0:02:29.9]}
15... Rb8 {[%clk 0:02:53.7]} 16. b3 {[%clk 0:02:19.5]} 16... Ne7 {[%clk
0:02:52.8]} 17. Nce3 {[%clk 0:02:11.6]} 17... Nxd5 {[%clk 0:02:51.4]} 18. Nxd5
{[%clk 0:02:11.1]} 18... Be6 {[%clk 0:02:37.3]} 19. f4 {[%clk 0:01:53.1]} 19...
Bh6 {[%clk 0:02:20.3]} 20. Qd3 {[%clk 0:01:49.3]} 20... f5 {[%clk 0:02:09.2]}
21. fxe5 {[%clk 0:01:26.1]} 21... fxe4 {[%clk 0:01:46.6]} 22. Bxe4 {[%clk
0:01:27]} 22... Bxd5 {[%clk 0:01:29.4]} 23. Qxd5+ {[%clk 0:01:15]} 23... Kh8
{[%clk 0:01:27.8]} 24. exd6 {[%clk 0:01:15.5]} 24... Be3+ {[%clk 0:01:14.7]} 25.
Kh1 {[%clk 0:01:14.5]} 25... Qg5 {[%clk 0:00:45.9]} 26. Qxg5 {[%clk 0:01:11.7]}
26... Bxg5 {[%clk 0:00:45.1]} 27. Rxf8+ {[%clk 0:01:12.4]} 27... Rxf8 {[%clk
0:00:44.5]} 28. d7 {[%clk 0:01:13.3]} 28... Rd8 {[%clk 0:00:42.3]} 29. Bc6
{[%clk 0:01:13.7]} 29... Kg8 {[%clk 0:00:36]} 30. Re1 {[%clk 0:01:11.4]} 30...
Kf7 {[%clk 0:00:29.3]} 31. Re8 {[%clk 0:01:07.1]} 31... Be7 {[%clk 0:00:24]} 32.
Kg2 {[%clk 0:01:01.5]} 32... h6 {[%clk 0:00:18.1]} 33. Kf3 {[%clk 0:01:01.1]}
33... Ke6 {[%clk 0:00:16.2]} 34. Ke4 {[%clk 0:01:01.1]} 34... Kd6 {[%clk
0:00:16.5]} 35. Ba4 {[%clk 0:00:59.4]} 35... g6 {[%clk 0:00:13.5]} 36. c5+
{[%clk 0:00:59.2]} 36... Ke6 {[%clk 0:00:10.7]} 37. c6 {[%clk 0:00:59.6]} 37...
Kd6 {[%clk 0:00:05.1]} 38. c7 {[%clk 0:00:59.2]} 1-0

[Event "Late-Titled-Tuesday-Blitz-September-05-2023"]
[Site "Chess.com"]
[Date "2023.09.05"]
[Round "3"]
[White "Gogolev_Artemy"]
[Black "Leo_C"]
[Result "0-1"]
[WhiteElo "2427"]
[BlackElo "2609"]
[TimeControl "180+1"]
[EndTime "14:28:09 PDT"]
[Termination "Leo_C won on time"]

1. d4 {[%clk 0:02:59.9]} 1... Nf6 {[%clk 0:02:56.5]} 2. c4 {[%clk 0:02:59.8]}
2... e6 {[%clk 0:02:56.4]} 3. Nc3 {[%clk 0:02:59.9]} 3... d5 {[%clk 0:02:56]} 4.
cxd5 {[%clk 0:02:58]} 4... exd5 {[%clk 0:02:56.9]} 5. Bf4 {[%clk 0:02:58.3]}
5... Bd6 {[%clk 0:02:52.5]} 6. Bxd6 {[%clk 0:02:58.4]} 6... Qxd6 {[%clk
0:02:53.4]} 7. e3 {[%clk 0:02:59]} 7... c6 {[%clk 0:02:51.8]} 8. Bd3 {[%clk
0:02:56]} 8... Bg4 {[%clk 0:02:48.9]} 9. Qc2 {[%clk 0:02:50.3]} 9... Nbd7 {[%clk
0:02:47.2]} 10. Nge2 {[%clk 0:02:49.3]} 10... O-O {[%clk 0:02:44.2]} 11. O-O
{[%clk 0:02:46.6]} 11... Rfe8 {[%clk 0:02:43.6]} 12. Rab1 {[%clk 0:02:38.8]}
12... a5 {[%clk 0:02:33.4]} 13. a3 {[%clk 0:02:39]} 13... Nf8 {[%clk 0:02:24.2]}
14. b4 {[%clk 0:02:35.4]} 14... axb4 {[%clk 0:02:24.2]} 15. axb4 {[%clk
0:02:36]} 15... Ne4 {[%clk 0:02:16.9]} 16. Bxe4 {[%clk 0:02:29.6]} 16... dxe4
{[%clk 0:02:15.4]} 17. Ng3 {[%clk 0:02:29.4]} 17... Qg6 {[%clk 0:02:06.5]} 18.
b5 {[%clk 0:02:20.7]} 18... h5 {[%clk 0:01:59.7]} 19. bxc6 {[%clk 0:02:04.3]}
19... bxc6 {[%clk 0:01:58.1]} 20. Rb6 {[%clk 0:01:35.2]} 20... h4 {[%clk
0:01:29.7]} 21. Nge2 {[%clk 0:01:34.8]} 21... h3 {[%clk 0:01:29.9]} 22. Nf4
{[%clk 0:01:33.1]} 22... Qf5 {[%clk 0:01:19.8]} 23. Rxc6 {[%clk 0:01:00]} 23...
hxg2 {[%clk 0:01:19.3]} 24. Rc1 {[%clk 0:00:54.4]} 24... Bf3 {[%clk 0:01:16.3]}
25. Rc5 {[%clk 0:00:43.2]} 25... Qh7 {[%clk 0:01:10.6]} 26. Rg5 {[%clk
0:00:38.4]} 26... Ra6 {[%clk 0:01:04.8]} 27. Ncd5 {[%clk 0:00:23.2]} 27... Rh6
{[%clk 0:00:52.1]} 28. h4 {[%clk 0:00:02.4]} 28... Kh8 {[%clk 0:00:44.1]} 29. h5
{[%clk 0:00:01.1]} 29... Bxh5 {[%clk 0:00:37.8]} 0-1